Cogmind - Beta 10.1 @@@ ROGUE MODE // 2020.10.10 @ 18:18:26 Player: aperiodic Result: Destroyed by as-73293 with Assembled Focal Cannon Performance ------------- Evolutions (3) 1500 Regions Visited (12) 2400 Robots Destroyed (140) 700 Value Destroyed (3490) 3490 Prototype IDs (40) 800 Alien Tech Used (0) 0 Bonus (751) 751 TOTAL SCORE: 9641 Bonus ------- High Alert Combat Kills 35 Aligned with FarCom 300 Met Imprinter 300 Destroyed Z-Imprinter 1000 Friendly Fire -884 Cogmind --------- Core Integrity 0/700 Matter 300/300 Energy 100/100 System Corruption 0% Temperature Cool (6) Movement Walking (195) Ox2 Location -7/Deep Caves Parts ------- > --- POWER (1) -------- Zionite Light DM Reactor > --- PROPULSION (3) --- Improved Titanium Leg Makeshift Leg > --- UTILITY (7) ------ Humpback Experimental Terrain Scan Processor Advanced Targeting Computer Experimental Targeting Computer Experimental Target Analyzer > --- WEAPON (2) ------- (None) > --- INVENTORY (24) --- Enhanced Nuclear Core Advanced Heat Sink YI-UF0's Bottomless Matter Pit (1380) Advanced Terrain Scanner Component Analysis Suite Advanced Beam Rifle Advanced Beam Rifle Advanced Beam Rifle Makeshift Laser Battle Cannon Field Lobotomy Kit CR-A16's Pointy Stick Peak State ------------ > --- POWER ------------ Zionite Light DM Reactor > --- PROPULSION ------- Carbon-fiber Leg Improved Titanium Leg Makeshift Leg > --- UTILITY ---------- Experimental Heat Sink Humpback Experimental Terrain Scan Processor Advanced Targeting Computer Experimental Targeting Computer Experimental Target Analyzer > --- WEAPON ----------- Advanced Beam Rifle CR-A16's Pointy Stick > --- INVENTORY -------- Enhanced Nuclear Core Advanced Heat Sink YI-UF0's Bottomless Matter Pit Advanced Terrain Scanner Component Analysis Suite Heavy Riot Gun Heavy Riot Gun Advanced Beam Rifle Advanced Beam Rifle Makeshift Laser Battle Cannon Field Lobotomy Kit [Rating: 65] Favorites ----------- Power Cooled Ion Engine Engine Cooled Ion Engine Power Core Enhanced Nuclear Core Reactor Zionite Light DM Reactor Propulsion Improved Titanium Leg Treads Light Treads Leg Improved Titanium Leg Wheel Wheel Utility Humpback Device Advanced Heat Sink Storage Humpback Processor Advanced Targeting Computer Protection Improved Utility Shielding Weapon Advanced Beam Rifle Energy Gun Advanced Beam Rifle Energy Cannon Advanced Beam Cannon Ballistic Gun Heavy Assault Rifle Ballistic Cannon Battle Cannon Launcher Grenade Launcher Piercing Weapon CR-A16's Pointy Stick Build | -11 -10 -10 -9 -9 -9 -8 -8 -7 -7 -7 -7 -7 ------- Run | Scr Mat Min Mat Min Exi Min Mat Fac Low Low Zio Dee Slots Evolved 6 | . . . 2 . . . 2 2 . . . . Power . | . . . . . . . . . . . . . Propulsion 1 | . . . . . . . 1 . . . . . Utility 5 | . . . 2 . . . 1 2 . . . . Weapon . | . . . . . . . . . . . . . Parts Attached 161 | 8 10 18 22 4 2 6 36 17 11 2 6 19 Power 11 | 1 . 1 2 . . . 4 . 1 . 1 1 Engine 8 | 1 . 1 2 . . . 3 . 1 . . . Core 2 | . . . . . . . 1 . . . 1 . Reactor 1 | . . . . . . . . . . . . 1 Propulsion 35 | 4 2 6 1 2 . 1 7 8 . 1 1 2 Treads 4 | 2 . 2 . . . . . . . . . . Leg 12 | . . . . . . . . 8 . 1 1 2 Wheel 19 | 2 2 4 1 2 . 1 7 . . . . . Hover . | . . . . . . . . . . . . . Flight . | . . . . . . . . . . . . . Utility 46 | 1 2 2 6 . 2 . 12 7 5 1 3 5 Device 18 | . . . 3 . . . 7 2 4 . 1 1 Storage 9 | 1 2 2 . . 1 . 1 . 1 . . 1 Processor 6 | . . . . . . . . 3 . . 1 2 Hackware . | . . . . . . . . . . . . . Protection 13 | . . . 3 . 1 . 4 2 . 1 1 1 Artifact . | . . . . . . . . . . . . . Weapon 69 | 2 6 9 13 2 . 5 13 2 5 . 1 11 Energy Gun 29 | 2 3 3 1 1 . 2 7 2 3 . . 5 Energy Cannon 9 | . . . 6 . . 1 . . . . 1 1 Ballistic Gun 9 | . . . 3 . . . 5 . . . . 1 Ballistic Cannon 1 | . . . . . . . . . . . . 1 Launcher 20 | . 3 6 3 1 . 2 1 . 2 . . 2 Special Weapon . | . . . . . . . . . . . . . Impact Weapon . | . . . . . . . . . . . . . Slashing Weapon . | . . . . . . . . . . . . . Piercing Weapon 1 | . . . . . . . . . . . . 1 Special Melee Weapon . | . . . . . . . . . . . . . Unidentified Prototypes 7 | . . 1 1 . . . 3 . . . . 2 Parts Lost 37 | . . 1 1 1 . 4 8 5 4 . . 13 Power 1 | . . . . . . . . . . . . 1 Propulsion 7 | . . . . . . 2 1 1 . . . 3 Utility 12 | . . . . 1 . 1 2 2 2 . . 4 Weapon 17 | . . 1 1 . . 1 5 2 2 . . 5 Highest Loss Streak 9 | . . 1 1 1 . 4 2 2 3 . . 9 Average Slot Usage (%) 89 | . 92 99 100 93 96 76 81 90 88 92 91 87 Engine 7 | . 14 14 11 11 11 11 7 7 7 7 5 . Leg 12 | . . . . . . . . 10 23 23 23 21 Wheel 10 | . 28 26 22 22 22 16 25 12 . . . . Device 13 | . . . 11 11 11 11 12 13 18 18 22 7 Storage 10 | . 20 28 22 22 18 11 9 7 7 7 7 6 Processor 10 | . . . . . . . . 14 15 15 15 24 Protection 3 | . . . 11 4 11 5 7 7 . 4 . 2 Energy Gun 12 | . 24 14 4 5 11 10 12 14 14 15 12 9 Energy Cannon 3 | . . . 12 15 11 10 1 . . . 2 2 Launcher 1 | . 3 13 . . . . . . . . . . Naked Turns . | . . . . . . . . . . . . . Heaviest Build 121 | 12 24 27 41 41 104 104 107 109 97 96 119 121 Greatest Support 60 | 40 26 40 20 20 20 20 30 60 60 60 60 60 Greatest Overweight (x) 9 | . 1 1 2 2 5 9 9 4 1 1 1 4 Average Overweight (x) 1 | . . . 1 1 1 6 3 2 1 1 1 . Largest Inventory Capacity 44 | 6 12 12 12 12 24 24 44 24 24 24 24 24 Average Capacity 21 | 5 7 11 12 12 15 24 24 24 23 24 24 23 Most Carried 24 | 6 8 12 12 12 16 17 24 24 24 24 24 22 Average Carried 18 | 4 5 9 11 12 12 16 19 23 16 22 23 14 Final Capacity 24 | 6 12 12 12 12 24 24 24 24 24 24 24 24 Final Carried 24 | 4 7 12 12 12 16 16 24 24 17 24 22 12 Class Distribution -------------------- 60% | Hauler-Mutant 12% | Mutant 12% | Hauler-Skirmisher 11% | Scavenger-Mutant Dominant Class ---------------- Mutant | -10/Materials Mutant | -10/Mines Scavenger-Mutant | -9/Materials Scavenger-Mutant | -9/Mines Scavenger-Mutant | -9/Exiles Hauler-Mutant | -8/Mines Hauler-Mutant | -8/Materials Hauler-Skirmisher | -7/Factory Hauler-Mutant | -7/Lower Caves Hauler-Mutant | -7/Lower Caves Hauler-Mutant | -7/Zion Hauler-Mutant | -7/Deep Caves Resources | -11 -10 -10 -9 -9 -9 -8 -8 -7 -7 -7 -7 -7 ----------- Run | Scr Mat Min Mat Min Exi Min Mat Fac Low Low Zio Dee Matter Collected 4152 | 280 132 1626 615 208 20 116 462 170 188 10 30 295 Remotely . | . . . . . . . . . . . . . Salvage Created 4460 | 84 223 264 534 401 . 219 1098 911 395 149 . 182 Parts 246 | 6 25 10 38 28 . 12 63 35 16 10 . 3 Haulers Intercepted 10 | . 2 . 2 . . . 4 2 . . . . Recyclers Shooed 4 | . . . 1 . . 1 2 . . . . . Parts Field Recycled . | . . . . . . . . . . . . . Retrieved Matter . | . . . . . . . . . . . . . Parts Self-Destructed 30 | . . . . . . . . . 14 16 . . Prevented 3 | . . . . . . . . . . 3 . . Kills | -11 -10 -10 -9 -9 -9 -8 -8 -7 -7 -7 -7 -7 ------- Run | Scr Mat Min Mat Min Exi Min Mat Fac Low Low Zio Dee Combat Hostiles Destroyed 106 | . 7 12 12 17 . 6 18 10 12 5 . 7 Guns 43 | . 1 2 2 1 . . 12 9 6 5 . 5 Cannons 19 | . . . 4 9 . 2 3 . . . . 1 AOE 41 | . 6 10 6 7 . 4 2 . 5 . . 1 Classes Destroyed 15 | 2 4 2 1 1 . 2 1 1 . . . 1 Worker 10 | 1 . . 2 2 . 2 3 . . . . . Builder 4 | . 1 . . 1 . . 1 1 . . . . Tunneler 1 | . . . . . . 1 . . . . . . Hauler 10 | . 2 . 2 . . . 4 2 . . . . Recycler 6 | 1 . . 1 . . . 1 3 . . . . Mechanic 1 | . . . . . . . 1 . . . . . Watcher 1 | . . . 1 . . . . . . . . . Swarmer 33 | . 3 . 6 11 . . 4 . 5 4 . . Grunt 36 | . 4 2 4 5 . 5 5 7 4 . . . Brawler 3 | . . . . 1 . . 2 . . . . . Duelist 3 | . . . . . . 1 2 . . . . . Sentry 12 | . . 2 2 . . . 5 1 2 . . . Programmer 4 | . . . . . . . . 2 1 1 . . Z-Light 2 | . . . . . . . . . . . . 2 Assembled 12 | . . 8 . . . . . . . . . 4 Best Kill Streak 8 | 2 3 2 7 8 . 4 6 5 4 4 . 3 Combat Bots Only 8 | . 3 2 4 8 . 3 4 3 4 4 . 3 Max Kills in Single Turn 4 | 1 3 2 2 3 . 1 4 1 2 1 . 2 Gunslinging 1 | . . . . . . . . . . . . 1 Exploded 3 | . 3 2 2 3 . 1 2 . 2 . . 1 Melee . | . . . . . . . . . . . . . Uniques/NPCs Destroyed 2 | . . 1 . . . . . . . . . 1 YI-UF0 (-10/Mines) Z-Imprinter (-7/Deep Caves) Combat | -11 -10 -10 -9 -9 -9 -8 -8 -7 -7 -7 -7 -7 -------- Run | Scr Mat Min Mat Min Exi Min Mat Fac Low Low Zio Dee Damage Taken 7124 | . 127 335 327 308 . 500 935 940 964 163 . 2525 Core 1168 | . 38 83 101 13 . 129 90 88 100 16 . 510 Absorbed by Shields . | . . . . . . . . . . . . . Core Remaining (%) 68 | 100 . 51 . . . 39 83 . . . . . Volleys Fired 301 | 5 12 29 33 20 . 19 80 53 19 9 . 22 Largest 2 | 2 2 2 2 2 . 2 2 2 2 2 . 2 Hottest 151 | 90 90 90 136 136 . 124 126 122 122 122 . 151 Shots Fired 582 | 9 24 56 64 40 . 34 159 96 38 18 . 44 Gun 418 | 9 17 31 35 7 . 11 141 96 35 18 . 18 Cannon 108 | . . . 24 30 . 15 16 . . . . 23 Launcher 56 | . 7 25 5 3 . 8 2 . 3 . . 3 Special . | . . . . . . . . . . . . . Kinetic 77 | . . . 23 . . . 36 . . . . 18 Thermal 449 | 9 17 31 36 37 . 26 121 96 35 18 . 23 Explosive 56 | . 7 25 5 3 . 8 2 . 3 . . 3 Electromagnetic . | . . . . . . . . . . . . . Robot Hit Streak 24 | 3 5 9 7 10 . 6 24 23 20 9 . 8 Robot Miss Streak 4 | 2 3 3 3 2 . 3 2 2 1 1 . 4 Penetration Max . | . . . . . . . . . . . . . Secondary Targets 1 | . . . . . . . . . . . . 1 Max Gunslinging Chain 1 | . . . . . . . . . . . . 1 Shots Hit Robots 404 | 3 14 34 37 25 . 22 128 77 27 12 . 25 Core Hits 226 | 3 22 31 21 21 . 11 43 28 23 6 . 17 Critical Hits 11 | . . . 3 3 . 3 2 . . . . . Critical Kills 5 | . . . 1 3 . 1 . . . . . . Critical Parts Destroyed 6 | . . . 2 . . 2 2 . . . . . Melee Attacks 6 | . . . . . . . . . . . . 6 Impact . | . . . . . . . . . . . . . Slashing . | . . . . . . . . . . . . . Piercing 6 | . . . . . . . . . . . . 6 Sneak Attacks . | . . . . . . . . . . . . . Combat Hostiles . | . . . . . . . . . . . . . Follow-up Attacks . | . . . . . . . . . . . . . Damage Inflicted 10859 | 60 730 962 1046 924 . 874 2394 1610 1218 240 . 801 Guns 5427 | 60 150 235 356 87 . 101 1926 1610 505 240 . 157 Cannons 1589 | . . . 325 389 . 183 267 . . . . 425 Explosions 3843 | . 580 727 365 448 . 590 201 . 713 . . 219 Melee . | . . . . . . . . . . . . . Ramming . | . . . . . . . . . . . . . Kinetic 806 | . . . 241 . . . 380 . . . . 185 Thermal 6210 | 60 150 235 440 476 . 284 1813 1610 505 240 . 397 Explosive 3843 | . 580 727 365 448 . 590 201 . 713 . . 219 Electromagnetic . | . . . . . . . . . . . . . Impact . | . . . . . . . . . . . . . Slashing . | . . . . . . . . . . . . . Piercing . | . . . . . . . . . . . . . Highest Corruption 3 | . . . . . . . 2 3 3 . . . Average Corruption 2 | . . . . . . . 1 1 2 . . . Corruption Purged 3 | . . . . . . . . . 3 . . . Effects 30 | . . . . . . . 8 8 14 . . . Message Errors 9 | . . . . . . . 3 2 4 . . . Matter Fused 4 | . . . . . . . . 2 2 . . . Heat Flow Errors 5 | . . . . . . . 2 . 3 . . . Energy Discharges 3 | . . . . . . . . 1 2 . . . Data Loss (minor) 3 | . . . . . . . 2 . 1 . . . Targeting Errors 5 | . . . . . . . 1 2 2 . . . Weapon Failures 1 | . . . . . . . . 1 . . . . Overload Shots . | . . . . . . . . . . . . . Overflow Damage 132 | . . 16 20 32 . 18 2 . 15 . . 29 Projectiles 30 | . . . . 1 . . . . . . . 29 Explosions 102 | . . 16 20 31 . 18 2 . 15 . . . Melee . | . . . . . . . . . . . . . Knockbacks . | . . . . . . . . . . . . . Impact . | . . . . . . . . . . . . . Kinetic . | . . . . . . . . . . . . . Secondary . | . . . . . . . . . . . . . Self-Inflicted Damage 290 | . . 69 40 60 . 41 12 . 68 . . . Shots 11 | . . 2 1 3 . 2 1 . 2 . . . Rammed . | . . . . . . . . . . . . . Targets Rammed . | . . . . . . . . . . . . . Kicked . | . . . . . . . . . . . . . Crushed . | . . . . . . . . . . . . . Highest Temperature 350 | 90 81 180 216 105 . 54 243 350 225 . . 325 Average Temperature 74 | 40 34 66 77 34 . 24 46 140 90 . . 130 Received Heat Transfer 2078 | . 72 72 105 63 . 189 351 315 261 9 . 641 Siege Activations . | . . . . . . . . . . . . . Robots Corrupted . | . . . . . . . . . . . . . Combat Hostiles . | . . . . . . . . . . . . . Parts Fried . | . . . . . . . . . . . . . Impact Corruptions . | . . . . . . . . . . . . . Robots Melted 3 | . . . . . . . 1 1 1 . . . Combat Hostiles 3 | . . . . . . . 1 1 1 . . . Parts Melted 21 | . . . 1 1 . . 7 8 3 1 . . Heat Transferred 11870 | 161 408 620 888 925 . 592 3811 2886 925 407 . 247 Parts Sabotaged . | . . . . . . . . . . . . . Parts Stolen . | . . . . . . . . . . . . . Parts Stripped . | . . . . . . . . . . . . . Power Chain Reactions . | . . . . . . . . . . . . . Missiles Intercepted . | . . . . . . . . . . . . . Alert | -11 -10 -10 -9 -9 -9 -8 -8 -7 -7 -7 -7 -7 ------- Run | Scr Mat Min Mat Min Exi Min Mat Fac Low Low Zio Dee Peak Influence 504 | 10 230 195 463 504 . 162 349 166 . . . . Initial 114 | . 6 89 17 114 . . 7 . . . . . Average 131 | 1 134 132 235 320 . 54 170 49 . . . . Maximum Alert Level 2 | . 1 . 2 2 . . 1 . . . . . Low Security (%) 76 | 100 67 100 33 14 . 100 57 100 . . . . Level 1 20 | . 32 . 61 54 . . 42 . . . . . Level 2 3 | . . . 4 31 . . . . . . . . Level 3 . | . . . . . . . . . . . . . Level 4 . | . . . . . . . . . . . . . Level 5 . | . . . . . . . . . . . . . High Security . | . . . . . . . . . . . . . Max Security . | . . . . . . . . . . . . . Squads Dispatched 8 | . . . . . . . 4 4 . . . . Investigation . | . . . . . . . . . . . . . Extermination 2 | . . . . . . . . 2 . . . . Reinforcement 2 | . . . . . . . 1 1 . . . . Assault . | . . . . . . . . . . . . . Garrison 4 | . . . . . . . 3 1 . . . . Intercept . | . . . . . . . . . . . . . Construction Impeded 1 | . . . . . . . 1 . . . . . Haulers Reinforced 1 | . . . . . . . . 1 . . . . Stealth | -11 -10 -10 -9 -9 -9 -8 -8 -7 -7 -7 -7 -7 --------- Run | Scr Mat Min Mat Min Exi Min Mat Fac Low Low Zio Dee Distress Signals 4 | . . 2 . . . . 2 . . . . . Communications Jammed . | . . . . . . . . . . . . . Distress Signals . | . . . . . . . . . . . . . Times Spotted 153 | . 10 17 18 18 . 8 27 16 22 9 . 8 Peak Tracking Total 11 | . 4 4 5 5 . 3 5 3 11 4 . 3 Tactical Retreats 22 | . . 4 3 1 . . 3 5 6 . . . Traps | -11 -10 -10 -9 -9 -9 -8 -8 -7 -7 -7 -7 -7 ------- Run | Scr Mat Min Mat Min Exi Min Mat Fac Low Low Zio Dee Traps Triggered 5 | . . . . . . . 3 2 . . . . Indirectly . | . . . . . . . . . . . . . Trap Hack Attempts . | . . . . . . . . . . . . . Triggered . | . . . . . . . . . . . . . Disarmed . | . . . . . . . . . . . . . Reprogrammed . | . . . . . . . . . . . . . Reused 1 | . . . . . . . . . . . . 1 Traps Extracted . | . . . . . . . . . . . . . Installed 1 | . . . . . . . . . . . . 1 Triggered 3 | . . . . . . . . . 1 2 . . Machines | -11 -10 -10 -9 -9 -9 -8 -8 -7 -7 -7 -7 -7 ---------- Run | Scr Mat Min Mat Min Exi Min Mat Fac Low Low Zio Dee Machines Disabled 19 | . 2 8 5 . . . . . 3 . . 1 Max in Single Turn 3 | . 1 3 3 . . . . . 1 . . 1 Machines Sabotaged . | . . . . . . . . . . . . . Garrisons Compromised . | . . . . . . . . . . . . . Overloaded Fab Kills . | . . . . . . . . . . . . . Fab Network Shutdowns . | . . . . . . . . . . . . . Hacking | -11 -10 -10 -9 -9 -9 -8 -8 -7 -7 -7 -7 -7 --------- Run | Scr Mat Min Mat Min Exi Min Mat Fac Low Low Zio Dee Machines Accessed 14 | . . . 3 . 1 . 3 3 1 3 . . Terminals 7 | . . . 2 . . . 3 1 1 . . . Fabricators 1 | . . . . . . . . 1 . . . . Repair Stations . | . . . . . . . . . . . . . Recycling Units . | . . . . . . . . . . . . . Scanalyzers 2 | . . . 1 . . . . 1 . . . . Garrison Access . | . . . . . . . . . . . . . Total Hacks 36 | . . . 8 . 1 . 9 7 4 7 . . Successful 28 | . . . 5 . 1 . 6 5 4 7 . . Failed 8 | . . . 3 . . . 3 2 . . . . Catastrophic . | . . . . . . . . . . . . . Database Lockouts . | . . . . . . . . . . . . . Manual 19 | . . . 4 . 1 . 8 2 . . 4 . Terminals 20 | . . . 5 . . . 9 2 4 . . . Fabricators 2 | . . . . . . . . 2 . . . . Repair Stations . | . . . . . . . . . . . . . Recycling Units . | . . . . . . . . . . . . . Scanalyzers 6 | . . . 3 . . . . 3 . . . . Garrison Access . | . . . . . . . . . . . . . Terminal Hacks 16 | . . . 1 . 1 . 3 . 4 7 . . Record 9 | . . . . . . . . . 4 5 . . Open Door 2 | . . . . . . . . . . 2 . . Alert Level 2 | . . . . . . . 2 . . . . . Unreport Threat 1 | . . . . . . . 1 . . . . . Locate Traps 1 | . . . 1 . . . . . . . . . EX-Prototype ID Bank 1 | . . . . . 1 . . . . . . . Fabricator Hacks 2 | . . . . . . . . 2 . . . . Load Schematic 1 | . . . . . . . . 1 . . . . Build 1 | . . . . . . . . 1 . . . . Repair Station Hacks . | . . . . . . . . . . . . . Recycling Unit Hacks . | . . . . . . . . . . . . . Scanalyzer 4 | . . . 2 . . . . 2 . . . . Insert Component 3 | . . . 2 . . . . 1 . . . . Analyze 1 | . . . . . . . . 1 . . . . Garrison Access Hacks . | . . . . . . . . . . . . . Unauthorized Hacks 6 | . . . 2 . . . 3 1 . . . . Terminals 6 | . . . 2 . . . 3 1 . . . . Botnet 6 | . . . 2 . . . 3 1 . . . . Fabricators . | . . . . . . . . . . . . . Repair Stations . | . . . . . . . . . . . . . Recycling Units . | . . . . . . . . . . . . . Scanalyzers . | . . . . . . . . . . . . . Garrison Access . | . . . . . . . . . . . . . Data Cores Recovered . | . . . . . . . . . . . . . Used . | . . . . . . . . . . . . . Hacking Detections 10 | . . . 3 . . . 3 3 1 . . . Full Trace Events 1 | . . . 1 . . . . . . . . . Feedback Events . | . . . . . . . . . . . . . Feedback Blocked . | . . . . . . . . . . . . . Robot Schematics Acquired . | . . . . . . . . . . . . . Robots Built . | . . . . . . . . . . . . . Matter . | . . . . . . . . . . . . . Time . | . . . . . . . . . . . . . Total Robot Build Rating . | . . . . . . . . . . . . . Part Schematics Acquired 1 | . . . . . . . . 1 . . . . Parts Built 2 | . . . . . . . . 2 . . . . Matter 168 | . . . . . . . . 168 . . . . Time 42 | . . . . . . . . 42 . . . . Total Part Build Rating 8 | . . . . . . . . 8 . . . . Parts Repaired . | . . . . . . . . . . . . . Time . | . . . . . . . . . . . . . Parts Recycled . | . . . . . . . . . . . . . Recycled Matter . | . . . . . . . . . . . . . Retrieved Matter . | . . . . . . . . . . . . . Retrieved Components . | . . . . . . . . . . . . . Parts Scanalyzed 1 | . . . . . . . . 1 . . . . Part Schematics Acquired 1 | . . . . . . . . 1 . . . . Parts Damaged . | . . . . . . . . . . . . . Bothacking | -11 -10 -10 -9 -9 -9 -8 -8 -7 -7 -7 -7 -7 ------------ Run | Scr Mat Min Mat Min Exi Min Mat Fac Low Low Zio Dee Used RIF Installer . | . . . . . . . . . . . . . Robots Hacked . | . . . . . . . . . . . . . Non-combat . | . . . . . . . . . . . . . Combat . | . . . . . . . . . . . . . Robot Hacks Applied . | . . . . . . . . . . . . . Relay Couplers Released . | . . . . . . . . . . . . . Robots Rewired . | . . . . . . . . . . . . . Allies Hacked . | . . . . . . . . . . . . . Hacks Repelled . | . . . . . . . . . . . . . Allies | -11 -10 -10 -9 -9 -9 -8 -8 -7 -7 -7 -7 -7 -------- Run | Scr Mat Min Mat Min Exi Min Mat Fac Low Low Zio Dee Total Allies . | . . . . . . . . . . . . . Largest Group . | . . . . . . . . . . . . . Highest-Rated Group . | . . . . . . . . . . . . . Highest-Rated Ally . | . . . . . . . . . . . . . Total Orders . | . . . . . . . . . . . . . Ally Attacks . | . . . . . . . . . . . . . Total Damage . | . . . . . . . . . . . . . Kills . | . . . . . . . . . . . . . Allies Corrupted . | . . . . . . . . . . . . . Allies Melted . | . . . . . . . . . . . . . Intel | -11 -10 -10 -9 -9 -9 -8 -8 -7 -7 -7 -7 -7 ------- Run | Scr Mat Min Mat Min Exi Min Mat Fac Low Low Zio Dee Robot Analysis Total . | . . . . . . . . . . . . . Derelict Logs Recovered 5 | . . 1 . 1 . . . . 1 1 1 . Drone Launches . | . . . . . . . . . . . . . Drone Recoveries . | . . . . . . . . . . . . . Exploration | -11 -10 -10 -9 -9 -9 -8 -8 -7 -7 -7 -7 -7 ------------- Run | Scr Mat Min Mat Min Exi Min Mat Fac Low Low Zio Dee Turns Passed 11151 | 129 153 850 441 525 270 697 1215 1535 995 1237 2123 981 Spaces Moved 6027 | 63 98 540 284 471 262 300 529 585 328 732 1303 532 Core 7 | 7 . . . . . . . . . . . . Treads 50 | 36 . 14 . . . . . . . . . . Legs 3182 | . . . . . . . . 287 328 732 1303 532 Wheels 2788 | 20 98 526 284 471 262 300 529 298 . . . . Hover . | . . . . . . . . . . . . . Flight . | . . . . . . . . . . . . . Fastest Speed 50 | 50 80 90 90 90 90 130 100 110 160 160 160 130 Average Speed 134 | 125 89 91 91 93 97 149 113 134 160 160 160 160 Slowest Speed 250 | 160 90 160 100 100 130 170 170 250 160 160 160 250 Overloaded Moves . | . . . . . . . . . . . . . Propulsion Burnouts . | . . . . . . . . . . . . . Robots Hopped 1 | . . . . . . . . . . 1 . . Cave-ins Triggered . | . . . . . . . . . . . . . Exploration Rate (%) 49 | 5 31 84 25 79 62 61 33 10 41 65 85 65 Regions Visited 12 Branch Regions 8 Pre-discovered Areas 3 | . . 1 . . . . . . 1 . 1 . Known Exits Taken . | . . . . . . . . . . . . . Unknown Exits Taken 12 | 1 1 1 1 1 1 1 1 1 1 1 1 . Scrap Searched 11 | . . 2 . 2 . . . . . 4 3 . Spaces Dug . | . . . . . . . . . . . . . Terrain Destroyed 290 | . 36 82 20 26 . 75 17 . 14 . . 20 Melee . | . . . . . . . . . . . . . Projectile 3 | . . . . 1 . 1 . . . . . 1 AOE 287 | . 36 82 20 25 . 74 17 . 14 . . 19 Terrain Rammed . | . . . . . . . . . . . . . Walls Destroyed . | . . . . . . . . . . . . . Machines Disabled . | . . . . . . . . . . . . . Actions | -11 -10 -10 -9 -9 -9 -8 -8 -7 -7 -7 -7 -7 --------- Run | Scr Mat Min Mat Min Exi Min Mat Fac Low Low Zio Dee Total 8480 | 100 135 836 397 515 276 511 982 1238 758 780 1350 602 Wait 1748 | 19 7 223 39 17 . 185 287 556 378 25 4 8 Move 6013 | 62 97 539 283 470 261 299 528 584 327 729 1302 532 Hop 1 | . . . . . . . . . . 1 . . Pick Up 162 | 6 6 16 11 1 11 2 34 15 21 10 17 12 Fast Attach 10 | 4 1 . . . 1 . . 2 . . . 2 Attach 53 | 2 . 2 3 . 1 2 18 8 5 . 3 9 Detach 4 | . . . . . . . 2 . . . 2 . Swap 99 | 2 9 16 19 4 . 4 19 7 6 2 3 8 Drop 82 | . 3 11 9 3 2 . 14 13 2 4 19 2 Fire 301 | 5 12 29 33 20 . 19 80 53 19 9 . 22 Melee 6 | . . . . . . . . . . . . 6 Ram . | . . . . . . . . . . . . . Kick . | . . . . . . . . . . . . . Crush . | . . . . . . . . . . . . . Escape Stasis . | . . . . . . . . . . . . . Rewire . | . . . . . . . . . . . . . Trap 1 | . . . . . . . . . . . . 1 Miscellaneous . | . . . . . . . . . . . . . Route ------- -11/Scrapyard -10/Materials -10/Mines -9/Materials -9/Mines (discovered 3 exits: *Mat x2 / *Exi) -9/Exiles (discovered 2 exits: [*Min x2]) -8/Mines -8/Materials (discovered 2 exits: *Fac / [*Sto]) -7/Factory -7/Lower Caves -7/Lower Caves -7/Zion (discovered 2 exits: [*Dee] / [Pro]) -7/Deep Caves (discovered 1 exit: [*Pro]) History --------- Turn | Location | Event 2 | -11/Scrapyard | Met Revision 17 10 | -11/Scrapyard | Discovered new exit (range 14) 130 | -11/Scrapyard | Entered Materials 245 | -10/Materials | Discovered new exit (range 15) 283 | -10/Materials | Entered Mines 304 | -10/Mines | Build established: Mutant 340 | -10/Mines | Discovered new exit (range 7) 448 | -10/Mines | YI-UF0 nonchalantly dropped a Grenade Launcher on the ground 513 | -10/Mines | Destroyed YI-UF0 518 | -10/Mines | Found Prototype Storage 520 | -10/Mines | Identified YI-UF0's Bottomless Matter Pit 557 | -10/Mines | Learned location of Zion (-7) 596 | -10/Mines | Assembled infested the area 601 | -10/Mines | Assisted by a Guerilla fighting off Assembled 1133 | -10/Mines | Entered Materials 1133 | -9/Materials | Evolved 2 slots: Utility x2 1463 | -9/Materials | Build established: Scavenger-Mutant 1464 | -9/Materials | Discovered new exit (range 14) 1574 | -9/Materials | Entered Mines 1668 | -9/Mines | Discovered new exit (range 10) 1836 | -9/Mines | Destroyed 8 combat bots 2005 | -9/Mines | Discovered new exit (range 11) 2017 | -9/Mines | Received a Rocket Launcher from a helpful Derelict 2096 | -9/Mines | Deemed a non-threat by the Exiles lab entrance 2096 | -9/Mines | Discovered new exit (range 5) 2099 | -9/Mines | Entered Exiles 2114 | -9/Exiles | Discovered new exit (range 15) 2131 | -9/Exiles | Met 8R-AWN 2144 | -9/Exiles | Met EX-HEX 2173 | -9/Exiles | Met EX-BIN 2186 | -9/Exiles | Aligned with FarCom system 2187 | -9/Exiles | Given EX-Vault access code 2208 | -9/Exiles | Opened EX-Vault 2216 | -9/Exiles | Found Field Lobotomy Kit 2236 | -9/Exiles | Warned to stay clear of 0b10 Research branches 2261 | -9/Exiles | Met EX-DEC 2354 | -9/Exiles | Discovered new exit (range 14) 2369 | -9/Exiles | Left Exiles lab with Field Lobotomy Kit 2369 | -9/Exiles | Entered Mines 2588 | -8/Mines | Build established: Hauler-Mutant 2723 | -8/Mines | Core integrity fell below 50% 2759 | -8/Mines | Lost 4 parts (2n1u1w) 3060 | -8/Mines | Discovered new exit (range 5) 3066 | -8/Mines | Entered Materials 3066 | -8/Materials | Evolved 2 slots: Propulsion x1, Utility x1 3192 | -8/Materials | Discovered new exit (range 15) 3231 | -8/Materials | Garrison activated, responded to threat 3999 | -8/Materials | Discovered new exit (range 16) 4281 | -8/Materials | Entered Factory 4281 | -7/Factory | Evolved 2 slots: Utility x2 4643 | -7/Factory | Build established: Hauler-Skirmisher 5197 | -7/Factory | Garrison activated, responded to threat 5701 | -7/Factory | Discovered new exit (range 7) 5716 | -7/Factory | Fabricated Imp. Titanium Leg? 5816 | -7/Factory | Entered Lower Caves 5886 | -7/Lower Caves | Attracted the attention of an 0b10 base 5937 | -7/Lower Caves | Lost 3 parts (2u1w) 6011 | -7/Lower Caves | Learned location of 1 exit from Proximity Caves 6108 | -7/Lower Caves | Build established: Hauler-Mutant 6793 | -7/Lower Caves | Discovered new exit (range 11) 6811 | -7/Lower Caves | Entered another Lower Caves area 6812 | -7/Lower Caves | Encountered a Warlord checkpoint 6929 | -7/Lower Caves | Learned Factory terminal intel 7268 | -7/Lower Caves | Learned Factory trap positions 7268 | -7/Lower Caves | Learned Extension trap positions 7268 | -7/Lower Caves | Learned Research security intel 7798 | -7/Lower Caves | Discovered new exit (range 19) 8048 | -7/Lower Caves | Entered Zion 8083 | -7/Zion | Found Prototype Processor 8086 | -7/Zion | Found Prototype Processor 8091 | -7/Zion | Found Prototype Processor 8095 | -7/Zion | Found Prototype Processor 8148 | -7/Zion | Found CR-A16's Pointy Stick 8196 | -7/Zion | Discovered new exit (range 15) 8217 | -7/Zion | Identified Exp. Core Analyzer 8270 | -7/Zion | Acquired unknown access codes intercepted by a Zionite 8303 | -7/Zion | Identified Exp. Terrain Scan Processor 8311 | -7/Zion | Identified Exp. Signal Interpreter 8312 | -7/Zion | Identified Exp. Targeting Computer 8336 | -7/Zion | Found Prototype Processor 8338 | -7/Zion | Found Prototype Processor 8344 | -7/Zion | Identified Exp. Melee Analysis Suite 8354 | -7/Zion | Identified Exp. Target Analyzer 8516 | -7/Zion | Learned location of Extension (-4) 9176 | -7/Zion | Discovered new exit (range 16) 9298 | -7/Zion | Rebuked by Imprinter 10140 | -7/Zion | Opened final containment barrier to the Deep Caves 10166 | -7/Zion | Saw the warning signs outside the Deep Caves entrance 10171 | -7/Zion | Entered Deep Caves 10452 | -7/Deep Caves | Attacked by Z-Imprinter 10493 | -7/Deep Caves | Core integrity fell below 50% 10516 | -7/Deep Caves | Destroyed Z-Imprinter 10546 | -7/Deep Caves | Lost 9 parts (1p2n3u3w) 10652 | -7/Deep Caves | Z-Facility disabled 10880 | -7/Deep Caves | Discovered new exit (range 7) 11138 | -7/Deep Caves | Spotted as-73293 11143 | -7/Deep Caves | Core integrity fell below 20% 11152 | -7/Deep Caves | Destroyed by as-73293 with Assembled Focal Cannon Last Messages --------------- 10584_ Acquired Carbon-fiber Leg. 10588_ Acquired Hvy. Riot Gun. 10590_ Acquired Mak. Laser. 10593_ Acquired Hvy. Riot Gun. 10596_ Acquired CR-A16's Pointy Stick. 10644_ UX-WZR(o) is busy at the terminal. 10652_ Z-Facility disabled. 10739_ as-12598 destroyed. 10739_ Switching to secondary target: as-34988. 10739_ as-34988 destroyed. 10742_ as-79343 destroyed. 10753_ Acquired 13 matter. 10755_ Acquired 10 matter. 10763_ Acquired 20 matter. 10880_ EXIT=FOUND 11014_ as-93858 destroyed. 11140_ as-73293: "DSI9AT1D G8OHIBQ29FWG 26R186 QD12WHW8W33 TDK1 81FTS" 11142_ Exp. Heat Sink destroyed. 11146_ Carbon-fiber Leg destroyed. 11149_ Hvy. Riot Gun destroyed. Map ----- +----------------------------------------------------+ | ??????????????????????????????????????????? ???? | | ??????????????????????????????????????????? #### | | ??????????????????????????????????? "?????? | | ?????????????????????????????????? ????? | | ?????????????????????????????????? ????# # | | ??????????????????????????????????% ??## | | ?????????????????????????????????# ## | | ?????????????????????????????????? | | ?????????????????????????????????????? | | ?????????????????????????????????????????? # | | ?????????????????????????????????????????????# #? | | ??????????????????? ???????????????????????# ## | | ????????????????? #???? ?????????????????# | | ?????????????? #??# ?????????????????##### | | ???????????? #??# ?????????????????????? | | ?????????? #??# ????????????????###### | | ????????? [ #??# #???????????????# | | ??????? * [ / #?## ##?????????????# | | ??????? / #?# ##???????????## # | | ?????? */ #?# #???????????# ## | | ?????? ### ##?????????## ### | | ????? ** * s ## ##????# ## #?## | | ????? / ## ##???# #??? | | ????? #?# #???###### #??? | | ???? #### ##### ##?# ##??? | | ???? ! @ ## ### #???? | | ?????" *s ### ## #???? | | ???" * ! #?# ## ####???? | | ????" ##########?# ## ######## | | ???" l h #??????????# # | | ????" #?????????## | | ???? # # ##?????????# ######### | | ???? #### ## ## ##??????????# #???????? | | ?????" ?????# ?# ?###???????????## ##???????? | | ????? ???????#??# ????????????????######????????? | | ??????????????????#??????????????????????????????? | | | | | | | | | | | | | | | | | | | | | | | | | | | | | +----------------------------------------------------+ Best States ------------- Heat Dissipation 79 Energy Generation 27 Energy Capacity 300 Matter Stores 300 Matter Capacity 300 Sight Range 16 Terrain Scan Range 20 Terrain Scan Density 1010 Base Temperature (-) 100 Armor Coverage 600 Resistance: KI 20 Resistance: TH 10 Utility Shielding 66 Evasion (%) 50 Targeting Accuracy 20 Target Analysis 12 Recoil Reduction 2 Item Schematics ----------------- Imp. Titanium Leg | -7/Factory | Scanalyzed Robot Schematics ------------------ None Fabricated ------------ Imp. Titanium Leg | x2 | -7/Factory Alien Tech Used ----------------- None Achievements -------------- None Challenges ------------ None Game ------ Seed HardenedLauncherStick Manual? 0 Play Time 02:55:18 Cumulative 90.4 hours Start 2020.10.10 @ 14:06:51 End 2020.10.10 @ 18:18:26 Sessions 5 Manual Loads 0 Difficulty Rogue Special Mode None Game No. 44 Rogue 40 Adventurer 4 Explorer 0 Win Type - Total 0 Types 0/0/0/0/0/0/0/0/0 Lore% 44 Gallery% 55 Achievement% 42 Wizard Run 0 Options --------- ASCII 1 Keyboard 0 Movement Mouse Keybinds 0 Fullscreen 1 Font 18/SmallcapsGlow Map View 76x50 Tactical HUD 1 Map Filters NONE Filters NONE Steam 1 RUN: b2798619-1470-4da6-aca6-0853d755b5d2